bitfinex/quotes_ETHUSD_20240811
["timestamp","ask_amount","ask_price","bid_price","bid_amount"]
[1723417834645,2.72751,2566.5,2566.1,1.070052]
[1723417834815,29.85309703,2566.8,2566.1,1.070052]
[1723417835013,2.72772,2566.3,2566.1,0.55]
[1723417835213,5.45548,2566.3,2566.1,0.55]
[1723417835615,2.72772,2566.3,2566.1,0.55]
[1723417836017,2.72757,2566.4,2566.1,0.55]
[1723417837130,2.72767,2566.3,2566.1,0.55]
[1723417837449,2.72804,2566.0,2565.7,5.3827]
[1723417837624,2.72804,2566.0,2565.7,2.3827]
[1723417838428,2.72773,2566.3,2565.7,5.11098]
[1723417838627,9.99749,2566.5,2565.8,0.62793297]
[1723417838831,2.72766,2566.3,2565.9,0.5738913]
[1723417839141,2.72766,2566.3,2566.0,0.55]
[1723417839327,9.99749,2566.5,2566.0,0.55]
[1723417839844,2.72761,2566.4,2566.0,0.55]
[1723417840009,2.72761,2566.4,2566.0,0.93519513]
[1723417840731,2.72761,2566.4,2566.0,0.55]
[1723417841115,7.27,2566.5,2566.1,2.3827]
[1723417841316,7.27,2566.5,2566.2,0.55]
[1723417841555,2.72756,2566.4,2566.2,0.55]
[1723417841755,9.99754,2566.5,2566.2,0.55]
[1723417842311,7.27,2566.5,2566.2,3.85154926]
[1723417842516,7.27,2566.5,2566.2,3.92948108]
[1723417842813,2.72714,2566.8,2566.2,3.92948108]
[1723417843025,2.72714,2566.8,2566.3,0.70914172]
[1723417843225,7.27,2567.0,2566.3,0.70914172]
[1723417843226,2.72725,2566.7,2566.4,0.55]
[1723417843744,2.72713,2566.8,2566.4,0.55]
[1723417843951,2.72713,2566.8,2566.4,1.0060701]
[1723417844667,7.27,2567.0,2566.4,0.55]
[1723417844668,2.72744,2566.5,2566.4,0.55]
[1723417844829,7.27,2567.0,2565.8,8.09953]
[1723417844830,2.72761,2566.4,2565.8,8.09953]
[1723417845019,2.72761,2566.4,2565.9,0.55]
[1723417845219,2.72776,2566.2,2565.9,0.55]
[1723417845431,2.72776,2566.2,2565.4,0.67413612]
[1723417845432,2.72776,2566.2,2565.5,2.3714]
[1723417845639,2.347,2566.3,2565.5,2.3714]
[1723417845962,2.7284,2565.6,2565.2,2.3714]
[1723417846114,2.72823,2565.8,2565.2,2.3714]
[1723417846319,0.08907687,2565.5,2565.2,2.3714]
[1723417846554,2.72843,2565.6,2565.2,2.3714]
[1723417846753,0.08886282,2565.4,2565.2,2.3714]
[1723417846955,2.72843,2565.6,2565.2,2.3714]
[1723417847157,2.72823,2565.8,2565.3,0.55]
[1723417847333,0.0888936,2565.5,2565.4,2.72861]
[1723417847573,2.72806,2566.0,2565.4,3.27861]
[1723417847747,0.0887766,2565.5,2565.4,2.72861]
[1723417848053,2.72806,2566.0,2565.4,0.55]
[1723417848240,2.72839,2565.7,2565.5,0.55]
[1723417848439,0.0885539,2565.6,2565.5,0.55]
[1723417848645,0.0885539,2565.6,2565.3,0.55]
[1723417849162,0.0885539,2565.6,2565.2,2.3714]
[1723417849462,2.7286,2565.5,2564.9,8.14218]
[1723417849619,2.81708802,2565.5,2564.9,8.14218]
[1723417850248,2.81708802,2565.5,2565.0,0.814218]
[1723417850559,2.81708802,2565.5,2565.1,0.55]
[1723417850759,2.72867,2565.4,2564.9,5.4131]
[1723417850931,2.81710383,2565.4,2564.9,5.4131]
[1723417851119,2.81710383,2565.4,2564.9,8.14224]
[1723417851120,0.08843383,2565.4,2564.9,8.14224]
[1723417851339,0.08843383,2565.4,2564.9,6.787454]
[1723417851340,2.72874,2565.3,2564.9,6.787454]
[1723417851546,0.08834547,2565.3,2564.9,6.787454]
[1723417851855,0.08834547,2565.3,2565.0,2.72898]
[1723417852053,0.08827177,2565.2,2564.9,9.516544]
[1723417852275,2.72852,2565.5,2564.9,2.4131]
[1723417852441,2.72873,2565.3,2564.9,2.4131]
[1723417852640,0.08827177,2565.2,2565.0,0.55]
[1723417852851,0.08827177,2565.2,2565.0,3.65321238]
[1723417853056,2.72834,2565.7,2565.0,3.65321238]
[1723417853274,2.72843,2565.6,2565.1,2.72893]
[1723417853477,2.81675468,2565.6,2565.2,0.55]
[1723417853856,2.72852,2565.5,2565.2,0.55]
[1723417854039,2.72852,2565.5,2565.1,0.55]
[1723417854242,0.08826311,2565.4,2565.1,0.55]
[1723417854549,2.72845,2565.6,2565.1,0.55]
[1723417854778,0.08823233,2565.3,2565.1,0.55]
[1723417854985,2.72852,2565.5,2565.1,0.55]
[1723417855172,0.08820154,2565.2,2565.1,0.55]
[1723417855342,2.72852,2565.5,2565.1,0.55]
[1723417855540,0.08820154,2565.2,2565.1,0.55]
[1723417855849,2.72852,2565.5,2565.1,0.55]
[1723417856360,0.08826311,2565.4,2565.1,0.55]
[1723417857082,0.08826311,2565.4,2565.1,1.148839]
[1723417857468,2.72859,2565.5,2565.1,1.148839]
[1723417857785,2.72859,2565.5,2565.1,0.55]
[1723417857971,2.8168558,2565.4,2565.0,0.55]
[1723417859559,0.0882358,2565.4,2565.0,0.55]
[1723417859887,2.72878,2565.3,2565.0,0.55]
[1723417860097,2.72884,2565.2,2564.8,0.55]
[1723417860286,2.81698693,2565.2,2564.7,3.55]
[1723417860483,2.81698693,2565.2,2564.8,0.858409]
[1723417860661,2.81698693,2565.2,2564.9,0.55]
[1723417860859,0.08814693,2565.2,2564.9,0.55]
[1723417861198,0.08814693,2565.2,2564.2,3.3601846]
[1723417861199,2.72954,2564.6,2564.3,2.84460072]
[1723417861360,9.99922,2564.9,2564.2,3.83604152]
[1723417861562,2.72937,2564.7,2564.2,2.84460072]
[1723417862065,0.08779351,2564.8,2564.1,2.84460072]
[1723417862066,2.72963,2564.5,2564.1,2.84460072]
[1723417862259,2.72963,2564.5,2564.0,2.84460072]
[1723417862260,2.72978,2564.3,2564.0,2.84460072]
[1723417862462,0.08771289,2564.4,2563.9,2.84886664]
[1723417862703,0.08771289,2564.4,2563.8,2.84886664]
[1723417862704,2.73006,2564.1,2563.8,2.84886664]
[1723417863016,2.81713881,2564.0,2563.5,2.3047]
[1723417863184,2.73023,2563.9,2563.5,2.808237]
[1723417863382,0.08704837,2563.9,2563.2,2.3047]
[1723417863601,2.73049,2563.7,2563.3,1.13433723]
[1723417863772,5.46099,2563.7,2563.3,1.13433723]
[1723417863973,0.08662395,2563.6,2563.3,1.13433723]
[1723417864416,2.73027,2563.9,2563.3,1.13433723]
[1723417864592,0.08659312,2563.5,2563.3,1.13433723]
[1723417864787,5.46056,2563.9,2563.2,2.3047]
[1723417864788,2.73045,2563.7,2563.2,2.3047]
[1723417864989,2.73045,2563.7,2563.3,1.13510013]
[1723417865372,2.73045,2563.7,2563.2,2.3047]
[1723417865573,2.73045,2563.7,2563.3,1.13520638]
[1723417865872,2.73065,2563.5,2562.9,2.865034]
[1723417866104,2.2946,2563.8,2563.0,1.13436628]
[1723417866105,2.73086,2563.3,2563.0,1.13436628]
[1723417866278,2.7307,2563.5,2563.1,1.13436628]
[1723417866479,2.73076,2563.4,2562.8,2.73128]
[1723417866676,2.73091,2563.3,2562.9,1.13460087]
[1723417866912,2.73106,2563.1,2563.0,1.13460087]
[1723417867120,2.73106,2563.1,2562.8,1.13460087]
[1723417867419,2.73106,2563.1,2562.6,2.6141523]
[1723417867420,2.73119,2563.0,2562.6,0.1241523]
[1723417867719,3.277256,2563.1,2562.7,1.13500527]
[1723417867720,2.73128,2562.9,2562.7,1.13500527]
[1723417868078,3.277296,2563.1,2562.7,1.13500527]
[1723417868313,2.73067,2563.5,2562.8,1.13531563]
[1723417868474,2.70876,2563.7,2562.9,5.15748]
[1723417868787,2.73066,2563.5,2562.9,5.23550605]
[1723417868989,2.73066,2563.5,2563.0,0.55]
[1723417869517,2.73085,2563.3,2563.0,0.55]
[1723417869723,3.274612,2563.5,2562.6,0.1241523]
[1723417870020,2.73149,2562.7,2562.6,0.1241523]
[1723417870215,5.46298,2562.7,2562.6,0.1241523]
[1723417870419,2.73149,2562.7,2562.6,0.1241523]
[1723417870720,6.236428,2562.7,2562.6,0.1241523]
[1723417872099,2.73124,2563.0,2562.6,0.1241523]
[1723417872821,5.73081,2563.4,2562.8,2.73137]
[1723417873121,2.73081,2563.4,2562.9,0.55]
[1723417873273,10.00056,2563.6,2562.9,0.55]
[1723417873473,7.27,2563.6,2563.0,2.42683033]
[1723417873712,10.00055,2563.6,2563.1,3.52368303]
[1723417873875,10.00055,2563.6,2563.1,0.79268303]
[1723417874079,10.00055,2563.6,2563.1,3.52374303]
[1723417874314,7.27,2563.6,2563.1,3.52374303]
[1723417874513,10.00053,2563.6,2563.2,0.59505734]
[1723417874711,2.73073,2563.5,2563.1,0.55]
[1723417875214,10.00053,2563.6,2563.1,3.28098]
[1723417875215,7.27,2563.6,2563.1,3.28098]
[1723417875432,7.27,2563.6,2563.1,0.55]
[1723417875590,10.00058,2563.6,2562.9,2.73126]
[1723417875795,10.00058,2563.6,2563.0,0.62802364]
[1723417876124,7.27,2563.6,2563.1,2.73102]
[1723417876302,10.00059,2563.6,2563.2,0.55]
[1723417876503,10.00059,2563.6,2563.0,0.62802364]
[1723417876812,7.27,2563.6,2563.1,2.731]
[1723417876991,7.27,2563.6,2563.2,2.99181695]
[1723417877178,7.27,2563.6,2563.3,2.73084]
[1723417877383,0.08543978,2563.5,2563.4,0.55]
[1723417877698,0.08543978,2563.5,2563.4,3.90800569]
[1723417877905,0.08543978,2563.5,2563.4,3.9860172]
[1723417878083,7.27,2563.9,2563.5,2.73061]
[1723417878279,19.85594703,2564.0,2563.7,2.73041]
[1723417878511,19.85594703,2564.0,2563.7,0.60889914]
[1723417878816,2.73049,2563.7,2563.4,0.55]
[1723417879116,19.85594703,2564.0,2563.7,2.73036]
[1723417879349,19.85594703,2564.0,2563.6,2.73043]
[1723417879483,19.85594703,2564.0,2563.7,0.55]
[1723417880188,19.85594703,2564.0,2563.9,2.73021]
[1723417880393,19.85594703,2564.0,2563.9,0.55]
[1723417880821,19.85594703,2564.0,2563.5,5.07281]
[1723417880976,19.85594703,2564.0,2563.2,0.67437342]
[1723417880977,2.73028,2563.9,2563.6,0.55]
[1723417881175,19.85594703,2564.0,2563.4,2.73065]
[1723417881176,2.73017,2564.0,2563.4,2.73065]
[1723417881379,2.73017,2564.0,2563.4,3.57848034]
[1723417881624,5.46037,2564.0,2563.4,3.57848034]
[1723417881803,2.73017,2564.0,2563.4,3.57848034]
[1723417882319,2.73022,2563.9,2563.2,5.74750342]
[1723417882491,2.73022,2563.9,2563.3,3.55]
[1723417882695,2.73049,2563.7,2563.3,0.55]
[1723417882902,2.73053,2563.6,2563.3,0.55]
[1723417884007,2.73032,2563.8,2563.3,0.55]
[1723417884614,5.46071,2563.8,2563.3,0.55]
[1723417884825,2.73032,2563.8,2563.3,0.55]
[1723417885022,2.73053,2563.6,2563.3,0.55]
[1723417885217,2.73053,2563.6,2563.1,0.55]
[1723417885419,2.73053,2563.6,2563.1,1.41089]
[1723417887432,2.73081,2563.4,2563.1,0.55]
[1723417887581,2.7307,2563.5,2563.0,0.55]
[1723417887779,2.73075,2563.4,2563.0,0.55]
[1723417888019,2.73089,2563.3,2563.0,0.55]
[1723417888188,2.264,2563.7,2563.0,0.55]
[1723417888189,2.73097,2563.2,2563.0,0.55]
[1723417888389,5.46201,2563.2,2562.9,0.55]
[1723417888730,5.46201,2563.2,2562.8,0.55]
[1723417888731,2.73097,2563.2,2562.8,0.55]
[1723417889289,2.73097,2563.2,2562.8,1.22459478]
[1723417889496,2.73097,2563.2,2562.8,0.55]
[1723417889828,2.7308,2563.4,2562.9,0.67443873]
[1723417889991,2.7308,2563.4,2563.0,0.55]
[1723417890688,22.58664703,2563.5,2563.0,1.22443873]
[1723417891088,2.73075,2563.4,2563.0,1.22443873]
[1723417891329,2.73103,2563.2,2563.0,0.55]
[1723417891489,2.73103,2563.2,2563.0,1.22443873]
[1723417891686,2.73103,2563.2,2563.0,0.55]
[1723417891913,2.7308,2563.4,2562.8,3.95581873]
[1723417892097,2.7308,2563.4,2562.9,1.80881244]
[1723417892300,2.73103,2563.2,2563.0,2.35881244]
[1723417892524,2.73103,2563.2,2563.1,0.67443873]
[1723417892711,2.73107,2563.1,2562.8,0.55]
[1723417892923,5.46219,2563.1,2562.7,0.55]
[1723417893104,2.73107,2563.1,2562.7,0.55]
[1723417893303,2.73098,2563.2,2562.7,3.28147]
[1723417893636,2.73086,2563.3,2562.8,1.80885091]
[1723417893818,2.73086,2563.3,2562.9,2.35885091]
[1723417894123,2.73086,2563.3,2563.0,2.35885091]
[1723417894434,5.46192,2563.2,2563.1,0.67464223]
[1723417894641,2.73138,2562.8,2562.7,0.67464223]
[1723417894792,2.3959,2563.2,2562.6,0.1241523]
[1723417894793,5.46298,2562.7,2562.6,0.1241523]
[1723417894997,7.85888,2562.7,2562.6,0.1241523]
[1723417895334,8.644768,2562.7,2562.6,0.79879453]
[1723417895693,11.376258,2562.7,2562.6,0.1241523]
[1723417895937,8.644768,2562.7,2562.6,0.1241523]
[1723417896451,11.376258,2562.7,2562.6,0.1241523]
[1723417896936,14.107748,2562.7,2562.6,0.1241523]
[1723417897164,17.107748,2562.7,2562.6,0.1241523]
[1723417897318,17.107748,2562.7,2561.5,2.2533]
[1723417897319,2.73253,2561.8,2561.6,0.6745579]
[1723417897506,2.73253,2561.8,2561.5,2.2533]
[1723417897507,5.4649,2561.8,2561.7,1.81052998]
[1723417897802,2.73248,2561.8,2561.0,0.752638]
[1723417898003,2.73268,2561.6,2561.1,1.81307074]
[1723417898210,5.46596,2561.3,2561.2,1.81307074]
[1723417898508,6.57207,2562.2,2561.2,1.81307074]
[1723417898509,2.73272,2561.6,2561.2,1.13851284]
[1723417898709,2.73253,2561.8,2561.3,1.87349786]
[1723417898935,2.73253,2561.8,2561.0,4.98658]
[1723417898936,2.73256,2561.7,2561.4,1.87349786]
[1723417899107,2.73256,2561.7,2561.1,0.07807593]
[1723417899108,2.73256,2561.7,2561.5,1.87349786]
[1723417899303,2.73256,2561.7,2561.6,1.87349786]
[1723417900225,2.73256,2561.7,2561.6,1.87319774]
[1723417900429,5.46512,2561.7,2561.6,1.87319774]
[1723417900664,2.73295,2561.4,2561.2,0.67458478]
[1723417900880,2.73309,2561.2,2561.1,0.67458478]
[1723417901076,2.73322,2561.1,2560.8,0.67458478]
[1723417901225,2.73322,2561.1,2560.7,2.3033]
[1723417901428,2.73322,2561.1,2560.8,1.19641286]
[1723417901629,2.73304,2561.3,2560.8,1.19641286]
[1723417901630,2.73304,2561.3,2560.8,3.92992286]
[1723417901836,2.73282,2561.5,2560.9,1.8713074]
[1723417902132,2.73272,2561.6,2561.0,1.8713074]
[1723417902331,5.46547,2561.6,2561.1,1.19641286]
[1723417902626,5.46547,2561.6,2561.2,1.19641286]
[1723417902627,2.73272,2561.6,2561.2,1.19641286]
[1723417902826,2.73272,2561.6,2561.3,1.8713074]
[1723417903032,2.73272,2561.6,2561.4,1.19641286]
[1723417903228,2.73272,2561.6,2561.0,2.73329]
[1723417903434,2.73272,2561.6,2561.1,1.75002909]
[1723417903630,2.73272,2561.6,2561.2,1.20002909]
[1723417903837,2.73284,2561.5,2561.2,1.87463342]
[1723417904043,2.73284,2561.5,2561.3,1.20002909]
[1723417904267,2.73272,2561.6,2561.3,1.20002909]
[1723417904687,2.73272,2561.6,2561.4,1.19695704]
[1723417904968,2.73272,2561.6,2561.5,1.19695704]
[1723417905170,2.73272,2561.6,2561.3,1.19695704]
[1723417906082,2.7327,2561.6,2561.3,1.19695704]
[1723417906371,2.7327,2561.6,2561.1,0.55]
[1723417906372,0.273272,2561.6,2561.1,0.55]
[1723417906528,2.73297,2561.4,2561.2,1.2000087]
[1723417906732,5.46592,2561.4,2561.3,1.2000087]
[1723417906971,2.2643,2561.9,2560.9,0.55]
[1723417906972,2.733,2561.3,2561.1,1.19695937]
[1723417907131,2.733,2561.3,2561.2,1.19691091]
[1723417907329,2.73258,2561.7,2561.0,0.67461506]
[1723417907330,2.7332,2561.1,2561.0,0.67461506]
[1723417907534,2.73342,2560.9,2560.8,1.19944916]
[1723417907826,0.08349068,2560.9,2560.8,0.67492332]
[1723417907987,2.73323,2561.1,2560.7,0.005]
[1723417908201,0.08341976,2561.0,2560.8,1.19886231]
[1723417908401,0.08341976,2561.0,2560.9,3.49186821]
[1723417908603,3.058621,2561.6,2560.9,3.49186821]
[1723417908604,2.73272,2561.6,2560.9,6.22527821]
[1723417908826,2.73272,2561.6,2561.0,1.19956821]
[1723417909028,2.73272,2561.6,2561.0,6.66603821]
[1723417909331,0.52643,2561.8,2561.1,1.19956821]
[1723417909494,2.73287,2561.5,2561.1,1.19956821]
[1723417909828,2.73298,2561.4,2561.2,1.19956821]
[1723417910005,2.73298,2561.4,2561.3,1.19654432]
[1723417910699,2.73271,2561.6,2561.3,1.19654432]
[1723417911015,3.058624,2561.6,2561.0,5.54460635]
[1723417911191,2.73271,2561.6,2561.1,1.74886745]
[1723417911389,2.73271,2561.6,2561.2,1.19886745]
[1723417911588,5.46545,2561.6,2561.2,1.19886745]
[1723417911839,2.73271,2561.6,2561.2,1.19886745]
[1723417912136,2.2563,2562.1,2561.2,1.64707619]
[1723417912290,2.7323,2562.0,2561.4,2.73284]
[1723417912491,5.46462,2562.0,2561.5,0.55]
[1723417912690,5.46462,2562.0,2561.6,1.19530774]
[1723417912691,22.58835703,2561.9,2561.6,1.19530774]
[1723417912938,2.73256,2561.7,2561.6,1.19530774]
[1723417913094,2.73256,2561.7,2561.4,1.19530774]
[1723417913294,2.73256,2561.7,2561.3,2.2839]
[1723417913595,2.73267,2561.6,2561.4,1.7467647]
[1723417913803,2.73267,2561.6,2561.4,0.55]
[1723417914098,2.73267,2561.6,2561.5,1.19415115]
[1723417914449,2.73257,2561.7,2561.5,1.19413902]
[1723417914928,25.32126703,2561.6,2561.5,1.19413902]
[1723417915131,25.32126703,2561.6,2560.9,2.3604]
[1723417915132,2.73292,2561.4,2560.9,2.3604]
[1723417915442,22.58893703,2561.3,2561.0,1.87171061]
[1723417915612,22.58893703,2561.3,2561.1,1.87171061]
[1723417915811,22.58893703,2561.3,2561.2,1.87171061]
[1723417916022,22.58893703,2561.3,2560.9,2.3604]
[1723417916226,2.7331,2561.2,2561.0,1.74783323]
[1723417916409,2.7332,2561.1,2560.7,0.005]
[1723417916598,2.7332,2561.1,2560.8,1.86981844]
[1723417916811,2.7332,2561.1,2560.9,2.41981844]
[1723417917134,2.7332,2561.1,2561.0,1.86981844]
[1723417917310,5.73972,2561.1,2561.0,1.86981844]
[1723417917696,5.73972,2561.1,2561.0,1.19520378]
[1723417917919,5.73972,2561.1,2560.9,0.67461466]
[1723417917920,3.00652,2561.1,2560.9,0.67461466]
[1723417918119,3.00652,2561.1,2561.0,1.87052344]
[1723417918304,0.27332,2561.1,2561.0,1.19590878]
[1723417918507,2.7331,2561.2,2560.7,0.005]
[1723417918714,2.7331,2561.2,2560.8,1.87088556]
[1723417918715,2.73327,2561.1,2560.8,1.87088556]
[1723417918927,2.73327,2561.1,2560.9,1.87088556]
[1723417919140,2.73301,2561.3,2561.0,1.87088556]
[1723417919431,2.73309,2561.2,2561.1,1.87088556]
[1723417920200,4.23648635,2561.4,2561.1,1.87088556]
[1723417920518,2.73304,2561.3,2561.2,1.87088556]
[1723417920923,2.73304,2561.3,2560.7,0.005]
[1723417921253,2.73338,2561.0,2560.8,1.88726492]
[1723417921396,3.28007,2560.9,2560.8,0.67461885]
[1723417921597,2.73322,2561.1,2560.8,1.887329]
[1723417921812,2.73322,2561.1,2560.9,1.887329]
[1723417922021,2.73322,2561.1,2561.0,1.887329]
[1723417922948,2.73305,2561.3,2561.0,1.887329]
[1723417923149,19.85594703,2561.2,2561.1,1.21268952]
[1723417923452,19.85594703,2561.2,2560.8,2.73351]
[1723417923739,19.85594703,2561.2,2560.9,2.43769837]
[1723417923936,22.58911703,2561.2,2561.0,1.88769837]
[1723417924145,22.58911703,2561.2,2561.0,0.67466143]
[1723417924303,22.58911703,2561.2,2560.9,0.55]
[1723417924304,22.58911703,2561.2,2561.1,1.88763877]
[1723417924741,2.73336,2561.0,2560.8,0.67466065]
[1723417925041,2.73336,2561.0,2560.9,0.67466065]
[1723417925042,5.46675,2561.0,2560.9,0.67466065]
[1723417925343,4.68205484,2561.0,2560.9,1.88757699]
[1723417925841,1.94869484,2561.0,2560.9,1.88757699]
[1723417926214,4.68199484,2561.0,2560.9,1.88757699]
[1723417927352,2.7333,2561.0,2560.9,1.88757699]
[1723417927895,2.7333,2561.0,2560.7,0.005]
[1723417928180,2.73341,2560.9,2560.8,1.8866709]
[1723417928757,2.73341,2560.9,2560.8,1.21200517]
[1723417928961,25.86943803,2560.9,2560.8,1.88667204]
[1723417929276,25.32276703,2560.9,2560.8,1.21200517]
[1723417929875,5.46704,2560.8,2560.7,0.005]
[1723417930043,5.46704,2560.8,2560.7,0.67996428]
[1723417930044,27.85528573,2560.8,2560.7,0.67996428]
[1723417930240,25.32298703,2560.8,2560.7,1.89258564]
[1723417930465,27.60518703,2560.8,2560.7,1.89258564]
[1723417930651,19.85594703,2560.8,2560.7,1.89258564]
[1723417930979,2.4038,2561.5,2560.7,1.89258564]
[1723417931183,2.4038,2561.5,2560.8,1.88758564]
[1723417931184,2.73307,2561.3,2560.8,1.88758564]
[1723417931356,2.73307,2561.3,2560.9,1.88758564]
[1723417931680,2.73307,2561.3,2560.7,3.17209856]
[1723417931681,2.73311,2561.2,2560.7,3.17209856]
[1723417931881,2.73311,2561.2,2560.8,2.00546286]
[1723417932094,2.73307,2561.3,2560.9,1.45546286]
[1723417932393,7.27,2561.8,2560.9,1.45546286]
[1723417932394,2.73208,2562.2,2561.0,1.45546286]
[1723417932575,1.01639562,2562.6,2561.8,2.73244]
[1723417932576,5.04731,2562.5,2561.8,2.73244]
[1723417932878,2.73225,2562.0,2561.7,2.4307]
[1723417933038,0.273225,2561.9,2561.8,1.45695657]
[1723417933239,2.3156,2562.8,2561.8,3.51466531]
[1723417933434,2.3156,2562.8,2561.9,1.33228531]
[1723417933435,2.7319,2562.4,2561.9,1.33228531]
[1723417933674,2.73199,2562.3,2562.0,0.78228531]
[1723417933877,5.46426,2562.1,2562.0,0.78228531]
[1723417934076,2.73242,2561.9,2561.4,2.4307]
[1723417934279,2.73219,2562.1,2561.5,1.33261654]
[1723417934449,2.73196,2562.3,2561.6,4.1899378]
[1723417934649,2.3156,2562.5,2561.7,2.0072878]
[1723417934650,5.04735,2562.5,2561.7,2.0072878]
[1723417934840,2.73193,2562.3,2561.8,1.4572878]
[1723417935067,2.73193,2562.3,2561.9,0.78261654]
[1723417935252,5.46393,2562.3,2561.9,0.77991305]
[1723417935456,2.73204,2562.2,2561.9,0.77991305]
[1723417935779,2.73214,2562.1,2561.9,0.77991305]
[1723417936086,2.73224,2562.0,2561.9,0.77991305]
[1723417936250,2.73239,2561.9,2561.3,0.6745706]
[1723417936453,2.73239,2561.9,2561.4,0.78188719]
[1723417936658,2.73239,2561.9,2561.5,0.6745706]
[1723417936858,2.73239,2561.9,2561.6,1.45645779]
[1723417937186,2.73239,2561.9,2561.7,1.45645779]
[1723417937187,3.510406,2561.9,2561.7,1.45645779]
[1723417937385,2.8059798,2561.8,2561.3,0.6745706]
[1723417937585,2.73273,2561.6,2561.4,1.45418151]
[1723417937799,0.35839958,2561.7,2561.5,1.45418151]
[1723417938080,2.3156,2562.1,2561.6,0.77961091]
[1723417938081,2.73224,2562.0,2561.6,0.77961091]
[1723417938287,2.73206,2562.2,2561.7,0.77961091]
[1723417938449,2.73241,2561.9,2561.7,1.45418151]
[1723417938644,2.73241,2561.9,2561.1,2.881]
[1723417938645,2.73225,2562.0,2561.3,2.4001]
[1723417938979,2.73225,2562.0,2561.4,2.00420806]
[1723417939139,2.73225,2562.0,2561.5,0.77961422]
[1723417939345,2.73225,2562.0,2561.6,2.00385332]
[1723417939559,2.73225,2562.0,2561.7,1.45385332]
[1723417939846,2.73218,2562.1,2561.8,0.77927048]
[1723417940044,6.09660503,2562.3,2561.9,1.32927048]
[1723417940285,5.46396,2562.3,2562.0,0.77927048]
[1723417940498,3.3264503,2562.5,2562.0,0.77927048]
[1723417940808,2.73118,2563.0,2562.0,0.77927048]
[1723417940809,2.73131,2562.9,2562.2,2.73202]
[1723417940998,2.73131,2562.9,2562.3,0.77927048]
[1723417941294,5.46267,2562.9,2562.3,0.77927048]
[1723417941454,2.73141,2562.8,2562.3,0.77927048]
[1723417941668,2.73109,2563.1,2562.4,2.73179]
[1723417941875,2.73131,2562.9,2562.5,1.32927048]
[1723417942062,0.273131,2562.8,2562.6,0.77927048]
[1723417942257,0.273131,2562.8,2562.1,2.4001]
[1723417942258,2.73156,2562.7,2562.1,2.4001]
[1723417942495,2.4573,2563.3,2562.1,2.4001]
[1723417942496,2.7316,2562.6,2562.2,1.32824042]
[1723417942657,2.7316,2562.6,2562.3,0.77824042]
[1723417943003,2.73144,2562.8,2562.3,0.77824042]
[1723417943156,0.07415016,2562.7,2562.3,3.51009042]
[1723417943363,5.46248,2563.0,2562.4,0.77824042]
[1723417943594,2.80526808,2562.9,2562.4,0.77824042]
[1723417943898,2.80526808,2562.9,2562.5,0.77824042]
[1723417944107,0.07392808,2562.9,2562.6,0.77824042]
[1723417944253,0.07392808,2562.9,2562.7,1.32824042]
[1723417944459,0.07392808,2562.9,2562.8,0.77824042]
[1723417944692,2.73102,2563.2,2562.8,0.77824042]
[1723417944905,0.07396329,2562.9,2562.8,0.77824042]
[1723417945106,2.73102,2563.2,2562.8,0.77824042]
[1723417945268,0.07389641,2562.9,2562.8,0.77824042]
[1723417945476,2.73096,2563.2,2562.8,1.32824042]
[1723417945806,2.4573,2563.6,2562.9,4.0586542]
[1723417945807,2.73059,2563.6,2562.9,4.0586542]
[1723417946103,2.73064,2563.5,2563.0,0.7774342]
[1723417946691,0.24573,2563.6,2563.0,3.5085942]
[1723417946899,2.73051,2563.7,2563.1,5.63225]
[1723417947066,2.73051,2563.7,2562.9,0.55]
[1723417947067,2.73085,2563.3,2563.2,0.77697496]
[1723417947270,2.7307,2563.5,2563.0,0.77697496]
[1723417947468,2.73123,2563.0,2562.4,5.08293]
[1723417947703,2.7307,2563.5,2562.5,1.32745191]
[1723417947704,2.73106,2563.1,2562.5,1.32745191]
[1723417947997,2.73088,2563.3,2562.6,0.77745191]
[1723417948197,2.73088,2563.3,2562.7,0.55]
[1723417948495,2.73071,2563.5,2562.8,0.77745191]
[1723417948682,2.73124,2563.0,2562.8,0.77745191]
[1723417949108,2.73101,2563.2,2562.7,0.55]
[1723417949278,2.73107,2563.1,2562.8,0.77725755]
[1723417949483,5.46223,2563.1,2562.9,0.77725755]
[1723417949675,2.73117,2563.0,2562.6,0.55]
[1723417949917,8.08775,2563.7,2562.7,0.77725715]
[1723417949918,2.73054,2563.6,2562.7,0.77725715]
[1723417950095,3.0,2563.5,2562.5,0.55]
[1723417950498,2.73147,2562.8,2562.5,0.55]
[1723417950882,2.73147,2562.8,2562.6,0.77740226]
[1723417951385,5.46294,2562.8,2562.6,0.77740226]
[1723417951585,2.73147,2562.8,2562.6,0.77740226]
[1723417951919,2.73121,2563.0,2562.6,0.77740226]
[1723417952119,5.46245,2563.0,2562.6,0.77740226]
[1723417952318,5.46245,2563.0,2562.5,0.55]
[1723417952319,2.73139,2562.8,2562.5,0.55]
[1723417952618,2.80587181,2562.7,2562.5,0.55]
[1723417952863,0.07438181,2562.7,2562.5,0.55]
[1723417953191,2.73129,2562.9,2562.5,0.55]
[1723417953386,0.07441265,2562.8,2562.5,0.55]
[1723417953591,2.7315,2562.7,2562.4,2.3512]
[1723417953785,2.80585265,2562.8,2562.4,2.3512]
[1723417953786,2.80591738,2562.6,2562.4,2.3512]
[1723417954095,2.80591738,2562.6,2562.1,5.3781]
[1723417954415,2.80591738,2562.6,2562.2,0.55]
[1723417954623,2.80598738,2562.6,2562.2,0.55]
[1723417955387,0.07431738,2562.6,2562.2,0.55]
[1723417955585,0.07431738,2562.6,2561.3,2.73295]
[1723417955586,2.73232,2562.0,2561.7,3.05260491]
[1723417955784,0.07384411,2561.9,2561.7,2.3781]
[1723417956016,0.07384411,2561.9,2561.3,2.3781]
[1723417956017,2.73245,2561.8,2561.3,2.3781]
[1723417956181,0.07379544,2561.7,2561.3,3.177313]
[1723417956385,2.73245,2561.8,2561.3,3.177313]